fUSD/lending_fUSD_20260507
["ID","MTS","AMOUNT","RATE_DAILY","PERIOD"]
[421742305,1778088649000,-445.34,0.00030192,120]
[421742308,1778088649000,-15745.53573555,0.000302,2]
[421742310,1778088649000,-1937.4,0.00030239,2]
[421742289,1778088649000,-154.430258,0.00030137,7]
[421742311,1778088649000,-4053.0,0.00030255,10]
[421742298,1778088649000,-1043.45,0.00030167,30]
[421742286,1778088649000,-1664.97863847,0.00030137,30]
[421742269,1778088649000,-1043.45,0.00030118,30]
[421742283,1778088649000,-1008.2,0.00030137,2]
[421742312,1778088649000,-246.0,0.000303,7]
[421742260,1778088649000,-1043.45,0.00030082,30]
[421742261,1778088649000,-1043.45,0.00030086,30]
[421742264,1778088649000,-1043.45,0.00030098,30]
[421742265,1778088649000,-1043.45,0.00030102,30]
[421742272,1778088649000,-1088.00308642,0.0003013,2]
[421742262,1778088649000,-1043.45,0.0003009,30]
[421742263,1778088649000,-1043.45,0.00030094,30]
[421742270,1778088649000,-1043.45,0.00030122,30]
[421742267,1778088649000,-1043.45,0.0003011,30]
[421742273,1778088649000,-364.57,0.0003013,15]
[421742282,1778088649000,-200.0,0.00030137,2]
[421742266,1778088649000,-1043.45,0.00030106,30]
[421742271,1778088649000,-1043.45,0.00030127,30]
[421742274,1778088649000,-14038.42104733,0.0003013,2]
[421742275,1778088649000,-204.43944946,0.0003013,2]
[421742278,1778088649000,-464.07,0.00030137,2]
[421742277,1778088649000,-1043.45,0.00030135,30]
[421742276,1778088649000,-1043.45,0.00030131,30]
[421742279,1778088649000,-158.52169719,0.00030137,2]
[421742280,1778088649000,-298.43,0.00030137,2]
[421742281,1778088649000,-209.84,0.00030137,2]
[421742284,1778088649000,-203.94470767,0.00030137,40]
[421742285,1778088649000,-3958.0,0.00030137,120]
[421742268,1778088649000,-1043.45,0.00030114,30]
[421742309,1778088649000,-401.06,0.000302,2]
[421742363,1778088649000,-150.0,0.00031607,2]
[421742314,1778088649000,-184.98,0.00030411,120]
[421742351,1778088649000,-324.0,0.00031461,30]
[421742354,1778088649000,-200.06420411,0.000315,2]
[421742355,1778088649000,-150.0,0.000315,2]
[421742344,1778088649000,-273.0,0.0003121,30]
[421742352,1778088649000,-493.0,0.00031461,30]
[421742343,1778088649000,-153.0,0.0003121,30]
[421742345,1778088649000,-157.0,0.00031214,30]
[421742350,1778088649000,-155.0,0.00031438,2]
[421742347,1778088649000,-4053.0,0.0003128,10]
[421742346,1778088649000,-686.0,0.00031214,30]
[421742348,1778088649000,-200.0,0.00031337,2]
[421742349,1778088649000,-271.7,0.00031337,2]
[421742365,1778088649000,-150.0,0.00031607,2]
[421742357,1778088649000,-615.07440476,0.00031533,2]
[421742366,1778088649000,-150.0,0.00031607,2]
[421742356,1778088649000,-2000.0,0.00031507,30]
[421742358,1778088649000,-150.0,0.00031568,2]
[421742361,1778088649000,-284.0,0.00031568,2]
[421742362,1778088649000,-150.0,0.00031607,2]
[421742360,1778088649000,-150.0,0.00031568,2]
[421742364,1778088649000,-150.0,0.00031607,2]
[421742359,1778088649000,-150.0,0.00031568,2]
[421742313,1778088649000,-6043.0,0.00030334,2]
[421742341,1778088649000,-811.0,0.0003121,30]
[421742339,1778088649000,-158.0,0.0003121,30]
[421742353,1778088649000,-4053.0,0.00031485,10]
[421742342,1778088649000,-304.0,0.0003121,30]
[421742315,1778088649000,-200.0,0.00030437,2]
[421742338,1778088649000,-152.0,0.0003121,30]
[421742316,1778088649000,-4053.0,0.0003046,10]
[421742318,1778088649000,-13964.0296241,0.00030495,2]
[421742320,1778088649000,-181.83,0.000306,7]
[421742319,1778088649000,-152.0,0.00030549,3]
[421742322,1778088649000,-200.0,0.00030737,2]
[421742321,1778088649000,-4053.0,0.00030665,10]
[421742323,1778088649000,-1630.68247498,0.0003084,2]
[421742327,1778088649000,-160.0,0.00031,120]
[421742324,1778088649000,-4053.0,0.0003087,10]
[421742326,1778088649000,-10015.53395039,0.00031,120]
[421742317,1778088649000,-8429.7192486,0.00030495,2]
[421742325,1778088649000,-4884.43800563,0.00031,30]
[421742329,1778088649000,-160.0,0.00031,44]
[421742337,1778088649000,-295.0,0.0003121,30]
[421742331,1778088649000,-506.0,0.00031005,6]
[421742336,1778088649000,-200.0,0.00031136,3]
[421742334,1778088649000,-4053.0,0.00031075,10]
[421742340,1778088649000,-320.0,0.0003121,30]
[421742335,1778088649000,-151.07323797,0.00031115,30]
[421742333,1778088649000,-200.0,0.00031037,2]
[421742330,1778088649000,-14055.02043896,0.00031001,2]
[421742328,1778088649000,-214.60306816,0.00031,30]
[421742332,1778088649000,-150.0,0.00031011,2]
[421742374,1778088650000,-200.0,0.00031671,2]
[421742387,1778088650000,-500.0,0.00031999,2]
[421742385,1778088650000,-4053.0,0.00031895,10]
[421742386,1778088650000,-200.0,0.00031937,2]
[421742384,1778088650000,-2000.0,0.00031808,2]
[421742383,1778088650000,-1267.48548705,0.0003169,10]
[421742381,1778088650000,-237.0,0.00031671,2]
[421742382,1778088650000,-2785.51451295,0.0003169,10]
[421742377,1778088650000,-200.0,0.00031671,2]
[421742378,1778088650000,-200.0,0.00031671,2]
[421742379,1778088650000,-200.0,0.00031671,2]
[421742376,1778088650000,-200.0,0.00031671,2]
[421742373,1778088650000,-495.0,0.00031671,2]
[421742371,1778088650000,-200.0,0.00031637,2]
[421742372,1778088650000,-500.0,0.00031671,2]
[421742380,1778088650000,-200.0,0.00031671,2]
[421742370,1778088650000,-276.0,0.00031607,2]
[421742369,1778088650000,-150.0,0.00031607,2]
[421742368,1778088650000,-150.0,0.00031607,2]
[421742367,1778088650000,-150.0,0.00031607,2]
[421742389,1778088650000,-51.77060422,0.00032,120]
[421742375,1778088650000,-200.0,0.00031671,2]
[421742388,1778088650000,-476.95345409,0.00032,120]
[421742423,1778088650000,-158.82,0.0002863,2]
[421742392,1778088650000,-484.05775828,0.00032,120]
[421742428,1778088650000,-588.43153291,0.0003012,10]
[421742424,1778088650000,-158.82,0.0002869,7]
[421742419,1778088650000,-151.0,0.00020548,2]
[421742422,1778088650000,-214.60306816,0.0002801,30]
[421742421,1778088650000,-151.0,0.00020548,2]
[421742418,1778088650000,-151.0,0.00020548,2]
[421742390,1778088650000,-151.0,0.00020548,2]
[421742417,1778088650000,-151.0,0.00020548,2]
[421742416,1778088650000,-151.0,0.00020548,2]
[421742426,1778088650000,-158.82,0.0002881,2]
[421742420,1778088650000,-151.0,0.00020548,2]
[421742425,1778088650000,-158.82,0.0002875,30]
[421742427,1778088650000,-151.0,0.0003,7]
[421742405,1778088650000,-157.42626923,0.00032,120]
[421742403,1778088650000,-175.0,0.00028321,2]
[421742409,1778088650000,-7281.25930236,0.00032,120]
[421742391,1778088650000,-151.0,0.00020548,2]
[421742393,1778088650000,-11.57570825,0.00032,120]
[421742399,1778088650000,-151.0,0.00020548,2]
[421742401,1778088650000,-151.0,0.000274,7]
[421742415,1778088650000,-151.0,0.00020548,2]
[421742407,1778088650000,-230.61442841,0.00032,120]
[421742429,1778088947000,152.0,0.00022,30]
[421742430,1778088948000,152.0,0.00022,30]
[421742431,1778088949000,152.0,0.00029221,120]
[421742436,1778089147000,-36123.7346,0.00014441,2]
[421742433,1778089147000,-151.19,0.00013659,2]
[421742434,1778089147000,-152.0,0.00014272,2]
[421742435,1778089147000,-152.0,0.00014272,2]
[421742437,1778089147000,-775.3602,0.00014484,2]
[421742432,1778089147000,-153.19,0.00012908,2]
[421742440,1778089147000,-317.5113,0.00014541,2]
[421742438,1778089147000,-2080.17592889,0.00014532,2]
[421742441,1778089147000,-23506.8756,0.00014541,2]
[421742443,1778089147000,-4963.0439,0.00014541,2]
[421742442,1778089147000,-5000.0,0.00014541,2]
[421742439,1778089147000,-150.0,0.0001454,2]
[421742444,1778089548000,280.81,0.00029452,120]
[421742445,1778089602000,-277.68870265,0.00014326,2]
[421742468,1778089832000,-579.0,0.0002,2]
[421742460,1778089832000,-965.79727365,0.0001767,2]
[421742470,1778089832000,-208.0,0.0002,2]
[421742471,1778089832000,-527.0,0.0002,2]
[421742469,1778089832000,-191.0,0.0002,2]
[421742461,1778089832000,-150.99,0.00017728,2]
[421742466,1778089832000,-3528.6499625,0.00018728,2]
[421742463,1778089832000,-475.44,0.00017889,2]
[421742467,1778089832000,-778.9490416,0.00018728,2]
[421742462,1778089832000,-154.97,0.00017728,4]
[421742465,1778089832000,-645.8,0.0001841,2]
[421742455,1778089832000,-170.51,0.00014985,2]
[421742457,1778089832000,-250.0,0.00015665,2]
[421742452,1778089832000,-161.0,0.00014541,3]
[421742454,1778089832000,-409.06410421,0.0001464,2]
[421742464,1778089832000,-474.11,0.00018163,2]
[421742453,1778089832000,-500.0,0.0001464,2]
[421742456,1778089832000,-420.0,0.00015597,2]
[421742459,1778089832000,-152.0,0.00017656,2]
[421742450,1778089832000,-325.37796976,0.00014332,2]
[421742451,1778089832000,-78759.1736,0.00014341,2]
[421742448,1778089832000,-6369.46924503,0.00014241,2]
[421742447,1778089832000,-300.0,0.0001424,2]
[421742446,1778089832000,-687.27063252,0.00014226,2]
[421742458,1778089832000,-153.19,0.00017211,2]
[421742472,1778089832000,-197.0,0.0002,2]
[421742449,1778089832000,-3604.65965497,0.00014241,2]
[421742475,1778089832000,-579.0,0.00021,2]
[421742474,1778089832000,-645.8,0.00020381,2]
[421742498,1778089832000,-197.0,0.00023,2]
[421742499,1778089832000,-177.0,0.00023,2]
[421742495,1778089832000,-191.0,0.00023,2]
[421742496,1778089832000,-208.0,0.00023,2]
[421742500,1778089832000,-1656.02232965,0.0002307,2]
[421742492,1778089832000,-304.38,0.00022253,2]
[421742494,1778089832000,-579.0,0.00023,2]
[421742493,1778089832000,-645.8,0.00022353,2]
[421742490,1778089832000,-197.0,0.00022,2]
[421742489,1778089832000,-527.0,0.00022,2]
[421742491,1778089832000,-177.0,0.00022,2]
[421742488,1778089832000,-208.0,0.00022,2]
[421742497,1778089832000,-527.0,0.00023,2]
[421742485,1778089832000,-193.67,0.0002197,2]
[421742487,1778089832000,-191.0,0.00022,2]
[421742473,1778089832000,-177.0,0.0002,2]
[421742478,1778089832000,-527.0,0.00021,2]
[421742476,1778089832000,-191.0,0.00021,2]
[421742480,1778089832000,-177.0,0.00021,2]
[421742477,1778089832000,-208.0,0.00021,2]
[421742482,1778089832000,-160.0,0.00021229,2]
[421742481,1778089832000,-214.60306816,0.00021229,2]
[421742484,1778089832000,-881.75674179,0.0002197,2]
[421742483,1778089832000,-153.19,0.00021514,2]
[421742486,1778089832000,-579.0,0.00022,2]
[421742479,1778089832000,-197.0,0.00021,2]
[421742542,1778089840000,-500.0,0.00023825,2]
[421742546,1778089840000,-500.0,0.00023825,2]
[421742544,1778089840000,-500.0,0.00023825,2]
[421742539,1778089840000,-500.0,0.00023825,2]
[421742543,1778089840000,-500.0,0.00023825,2]
[421742547,1778089840000,-500.0,0.00023825,2]
[421742548,1778089840000,-500.0,0.00023825,2]
[421742550,1778089840000,-500.0,0.00023825,2]
[421742551,1778089840000,-500.0,0.00023825,2]
[421742556,1778089840000,-151.19,0.00023826,2]
[421742553,1778089840000,-500.0,0.00023825,2]
[421742555,1778089840000,-500.0,0.00023825,2]
[421742554,1778089840000,-500.0,0.00023825,2]
[421742552,1778089840000,-500.0,0.00023825,2]
[421742557,1778089840000,-579.0,0.00024,2]
[421742559,1778089840000,-208.0,0.00024,2]
[421742558,1778089840000,-191.0,0.00024,2]
[421742545,1778089840000,-500.0,0.00023825,2]
[421742561,1778089840000,-197.0,0.00024,2]
[421742549,1778089840000,-500.0,0.00023825,2]
[421742541,1778089840000,-500.0,0.00023825,2]
[421742525,1778089840000,-417.0,0.0002307,2]
[421742538,1778089840000,-500.0,0.00023825,2]
[421742569,1778089840000,-4936.7156,0.000249,2]
[421742520,1778089840000,-1879.97767035,0.0002307,2]
[421742519,1778089840000,-177.50091255,0.00022407,2]
[421742521,1778089840000,-624.0,0.0002307,2]
[421742524,1778089840000,-928.0,0.0002307,2]
[421742523,1778089840000,-1268.0,0.0002307,2]
[421742522,1778089840000,-1352.0,0.0002307,2]
[421742526,1778089840000,-166.67,0.00023286,30]
[421742527,1778089840000,-500.0,0.00023825,2]
[421742532,1778089840000,-500.0,0.00023825,2]
[421742534,1778089840000,-636.56644505,0.00023825,2]
[421742533,1778089840000,-500.0,0.00023825,2]
[421742531,1778089840000,-500.0,0.00023825,2]
[421742529,1778089840000,-500.0,0.00023825,2]
[421742535,1778089840000,-209.19715847,0.00023825,2]
[421742528,1778089840000,-500.0,0.00023825,2]
[421742530,1778089840000,-500.0,0.00023825,2]
[421742536,1778089840000,-500.0,0.00023825,2]
[421742537,1778089840000,-500.0,0.00023825,2]
[421742540,1778089840000,-500.0,0.00023825,2]
[421742560,1778089840000,-527.0,0.00024,2]
[421742566,1778089840000,-168.82,0.00024658,2]
[421742563,1778089840000,-265.39,0.00024174,2]
[421742588,1778089840000,-332.189,0.0002607,2]
[421742586,1778089840000,-1352.0,0.0002607,2]
[421742590,1778089840000,-5438.41,0.0002609,2]
[421742592,1778089840000,-6233.02213847,0.00026567,2]
[421742595,1778089840000,-426.19876664,0.0002664,2]
[421742594,1778089840000,-778.9490416,0.00026623,2]
[421742593,1778089840000,-3528.6499625,0.00026623,2]
[421742598,1778089840000,-507.0,0.00027137,2]
[421742597,1778089840000,-314.0,0.000271,2]
[421742596,1778089840000,-307.0,0.000267,2]
[421742599,1778089840000,-2500.0,0.00027297,2]
[421742600,1778089840000,-2000.0,0.00027387,2]
[421742602,1778089840000,-1500.0,0.00027397,2]
[421742603,1778089840000,-214.60306816,0.00027397,10]
[421742605,1778089840000,-334.4,0.000274,2]
[421742604,1778089840000,-300.0,0.00027397,2]
[421742606,1778089840000,-185.62,0.0002774,2]
[421742562,1778089840000,-177.0,0.00024,2]
[421742607,1778089840000,-287.32205053,0.00027955,2]
[421742584,1778089840000,-3536.0,0.0002607,2]
[421742589,1778089840000,-417.0,0.0002607,2]
[421742601,1778089840000,-170.94898575,0.00027397,2]
[421742585,1778089840000,-624.0,0.0002607,2]
[421742568,1778089840000,-1000.0,0.00024781,2]
[421742587,1778089840000,-1268.0,0.0002607,2]
[421742564,1778089840000,-645.8,0.00024324,2]
[421742565,1778089840000,-185.62,0.00024658,2]
[421742567,1778089840000,-168.81,0.00024658,2]
[421742573,1778089840000,-206.0,0.00025,2]
[421742570,1778089840000,-6233.02213854,0.000249,2]
[421742572,1778089840000,-589.0,0.00025,2]
[421742576,1778089840000,-209.0,0.00025,2]
[421742571,1778089840000,-5000.0,0.00024922,2]
[421742574,1778089840000,-208.0,0.00025,2]
[421742577,1778089840000,-186.0,0.00025,2]
[421742578,1778089840000,-168.83,0.00025571,7]
[421742579,1778089840000,-500.0,0.00025785,2]
[421742581,1778089840000,-153.19,0.00025817,2]
[421742582,1778089840000,-200.0,0.00025909,2]
[421742591,1778089840000,-645.8,0.00026296,2]
[421742575,1778089840000,-530.0,0.00025,2]
[421742583,1778089840000,-200.0,0.00025952,2]
[421742580,1778089840000,-265.39,0.00025786,2]
[421742644,1778089841000,-6233.02213847,0.000299,2]
[421742646,1778089841000,-507.0,0.00029994,5]
[421742642,1778089841000,-4053.0,0.00029641,10]
[421742643,1778089841000,-214.60306816,0.00029641,10]
[421742648,1778089841000,-210.81,0.00030137,2]
[421742641,1778089841000,-2196.558,0.0002964,23]
[421742638,1778089841000,-150.0,0.00029452,30]
[421742647,1778089841000,-1043.5,0.000301,30]
[421742645,1778089841000,-4053.0,0.00029914,10]
[421742639,1778089841000,-152.0,0.00029468,7]
[421742640,1778089841000,-150.0,0.00029534,2]
[421742650,1778089841000,-4053.0,0.00030188,10]
[421742653,1778089841000,-200.0,0.00030548,3]
[421742659,1778089841000,-500.0,0.00030909,120]
[421742663,1778089841000,-90916.6396912,0.0003091,2]
[421742658,1778089841000,-185.62,0.00030823,2]
[421742660,1778089841000,-500.0,0.00030909,10]
[421742661,1778089841000,-500.0,0.00030909,2]
[421742652,1778089841000,-4053.0,0.00030461,10]
[421742651,1778089841000,-645.8,0.00030239,2]
[421742655,1778089841000,-4053.0,0.00030735,10]
[421742656,1778089841000,-6387.62833805,0.0003081,2]
[421742657,1778089841000,-2000.0,0.00030811,2]
[421742654,1778089841000,-152.0,0.00030549,3]
[421742636,1778089841000,-152.0,0.00029436,7]
[421742649,1778089841000,-200.0,0.00030137,2]
[421742632,1778089841000,-157.58,0.00029232,7]
[421742622,1778089841000,-157.58,0.00028931,30]
[421742631,1778089841000,-4053.0,0.00029094,10]
[421742672,1778089841000,-177.0,0.00031221,30]
[421742608,1778089841000,-500.0,0.0002797,2]
[421742612,1778089841000,-645.8,0.00028267,2]
[421742610,1778089841000,-152.0,0.00028186,30]
[421742609,1778089841000,-193.05,0.00028,2]
[421742611,1778089841000,-6233.02213847,0.00028233,2]
[421742614,1778089841000,-4053.0,0.00028547,10]
[421742625,1778089841000,-624.0,0.0002907,2]
[421742623,1778089841000,-157.55,0.00028931,30]
[421742613,1778089841000,-4053.0,0.00028273,10]
[421742624,1778089841000,-3536.0,0.0002907,2]
[421742619,1778089841000,-157.55,0.0002878,7]
[421742634,1778089841000,-500.0,0.00029366,2]
[421742618,1778089841000,-157.58,0.0002878,7]
[421742620,1778089841000,-4053.0,0.0002882,10]
[421742617,1778089841000,-157.55,0.0002863,2]
[421742615,1778089841000,-507.0,0.00028566,3]
[421742621,1778089841000,-1303.0,0.00028904,2]
[421742626,1778089841000,-1352.0,0.0002907,2]
[421742629,1778089841000,-157.58,0.00029082,2]
[421742628,1778089841000,-417.0,0.0002907,2]
[421742627,1778089841000,-1268.0,0.0002907,2]
[421742630,1778089841000,-157.55,0.00029082,2]
[421742635,1778089841000,-4053.0,0.00029367,10]
[421742637,1778089841000,-201.865,0.00029452,23]
[421742633,1778089841000,-157.57,0.00029232,7]
[421742616,1778089841000,-157.58,0.0002863,2]
[421742673,1778089841000,-191.0,0.00031221,30]
[421742711,1778089841000,-417.0,0.0003207,2]
[421742667,1778089841000,-3530.87797034,0.00031039,2]
[421742699,1778089841000,-235.85607587,0.00032,120]
[421742697,1778089841000,-227.14254531,0.00032,120]
[421742700,1778089841000,-1633.46575908,0.00032,120]
[421742698,1778089841000,-162.19056746,0.00032,120]
[421742701,1778089841000,-798.8970356,0.00032,120]
[421742708,1778089841000,-624.0,0.0003207,2]
[421742704,1778089841000,-301.91643064,0.00032,120]
[421742706,1778089841000,-214.60306816,0.00032,10]
[421742702,1778089841000,-1359.5547088,0.00032,120]
[421742707,1778089841000,-3536.0,0.0003207,2]
[421742703,1778089841000,-382.10203457,0.00032,120]
[421742710,1778089841000,-1268.0,0.0003207,2]
[421742696,1778089841000,-199.81052223,0.00032,120]
[421742717,1778089841000,-197.0,0.00032221,30]
[421742709,1778089841000,-1352.0,0.0003207,2]
[421742714,1778089841000,-579.0,0.0003221,30]
[421742712,1778089841000,-4053.0,0.00032102,10]
[421742713,1778089841000,-645.0,0.00032209,5]
[421742716,1778089841000,-527.0,0.00032221,30]
[421742715,1778089841000,-645.8,0.0003221,5]
[421742719,1778089841000,-177.0,0.00032221,30]
[421742722,1778089841000,-208.0,0.00032221,30]
[421742723,1778089841000,-335.0,0.0003224,2]
[421742720,1778089841000,-191.0,0.00032221,30]
[421742721,1778089841000,-158.0,0.00032221,30]
[421742662,1778089841000,-500.0,0.00030909,7]
[421742718,1778089841000,-153.0,0.00032221,30]
[421742695,1778089841000,-130169.6983997,0.00032,120]
[421742705,1778089841000,-300.0,0.00032,10]
[421742691,1778089841000,-500.0,0.00031999,2]
[421742692,1778089841000,-166.66666,0.00031999,26]
[421742668,1778089841000,-579.0,0.0003121,30]
[421742665,1778089841000,-4053.0,0.00031008,10]
[421742670,1778089841000,-197.0,0.00031221,30]
[421742669,1778089841000,-527.0,0.00031221,30]
[421742664,1778089841000,-3546.0700399,0.0003091,2]
[421742671,1778089841000,-153.0,0.00031221,30]
[421742674,1778089841000,-158.0,0.00031221,30]
[421742683,1778089841000,-6387.62833805,0.0003182,2]
[421742682,1778089841000,-414.16879595,0.000317,2]
[421742675,1778089841000,-208.0,0.00031221,30]
[421742684,1778089841000,-4053.0,0.00031829,10]
[421742678,1778089841000,-4053.0,0.00031555,10]
[421742666,1778089841000,-150.0,0.00031011,2]
[421742676,1778089841000,-4053.0,0.00031282,10]
[421742685,1778089841000,-160.0,0.000319,47]
[421742689,1778089841000,-229.47341453,0.00031999,2]
[421742690,1778089841000,-333.39524952,0.00031999,2]
[421742693,1778089841000,-166.66667,0.00031999,26]
[421742688,1778089841000,-186.53575633,0.00031973,5]
[421742686,1778089841000,-200.0,0.000319,10]
[421742694,1778089841000,-166.66667,0.00031999,26]
[421742680,1778089841000,-414.16879595,0.000317,2]
[421742679,1778089841000,-6233.02213847,0.00031567,2]
[421742677,1778089841000,-507.0,0.00031423,6]
[421742681,1778089841000,-414.16879595,0.000317,2]
[421742687,1778089841000,-500.0,0.0003197,2]
[421742764,1778089842000,-370.0,0.00033683,30]
[421742760,1778089842000,-500.0,0.0003327,2]
[421742761,1778089842000,-4053.0,0.00033469,15]
[421742762,1778089842000,-738.99910779,0.000335,2]
[421742759,1778089842000,-6233.02213847,0.00033233,2]
[421742757,1778089842000,-158.0,0.00033221,30]
[421742756,1778089842000,-191.0,0.00033221,30]
[421742763,1778089842000,-477.0,0.00033683,30]
[421742754,1778089842000,-197.0,0.00033221,30]
[421742751,1778089842000,-4053.0,0.00033196,15]
[421742766,1778089842000,-350.0,0.00033687,3]
[421742758,1778089842000,-208.0,0.00033221,30]
[421742767,1778089842000,-4053.0,0.00033743,15]
[421742773,1778089842000,-1359.5547088,0.000339,120]
[421742770,1778089842000,-163.9,0.000339,120]
[421742771,1778089842000,-1633.46575908,0.000339,120]
[421742769,1778089842000,-6387.62833805,0.0003384,2]
[421742774,1778089842000,-382.10203457,0.000339,120]
[421742776,1778089842000,-185.62,0.00033905,2]
[421742772,1778089842000,-798.8970356,0.000339,120]
[421742775,1778089842000,-160.0,0.000339,53]
[421742765,1778089842000,-971.0,0.00033683,30]
[421742778,1778089842000,-4053.0,0.00034016,15]
[421742777,1778089842000,-214.60306816,0.00034,30]
[421742779,1778089842000,-645.8,0.00034182,7]
[421742753,1778089842000,-527.0,0.00033221,30]
[421742768,1778089842000,-152.0,0.00033828,4]
[421742755,1778089842000,-177.0,0.00033221,30]
[421742781,1778089842000,-150.0,0.000342,7]
[421742749,1778089842000,-382.10203457,0.00033,120]
[421742724,1778089842000,-4053.0,0.00032376,10]
[421742726,1778089842000,-399.95088716,0.00032431,2]
[421742727,1778089842000,-150.0,0.00032562,2]
[421742729,1778089842000,-4053.0,0.00032649,10]
[421742728,1778089842000,-500.0,0.00032605,7]
[421742725,1778089842000,-166.921,0.00032397,30]
[421742730,1778089842000,-4899.63125595,0.000328,2]
[421742732,1778089842000,-507.0,0.00032852,8]
[421742740,1778089842000,-259.83,0.00032877,2]
[421742731,1778089842000,-6387.62833805,0.0003283,2]
[421742735,1778089842000,-500.0,0.00032877,2]
[421742734,1778089842000,-500.0,0.00032877,2]
[421742752,1778089842000,-579.0,0.0003321,30]
[421742733,1778089842000,-500.0,0.00032877,2]
[421742737,1778089842000,-500.0,0.00032877,2]
[421742736,1778089842000,-500.0,0.00032877,2]
[421742739,1778089842000,-889.12,0.00032877,2]
[421742742,1778089842000,-4053.0,0.00032923,15]
[421742741,1778089842000,-160.0,0.000329,50]
[421742744,1778089842000,-162.19056746,0.00033,120]
[421742743,1778089842000,-9061.67443138,0.00033,2]
[421742745,1778089842000,-1634.08961041,0.00033,3]
[421742747,1778089842000,-798.8970356,0.00033,120]
[421742746,1778089842000,-1633.46575908,0.00033,120]
[421742750,1778089842000,-160.0,0.00033,14]
[421742748,1778089842000,-1359.5547088,0.00033,120]
[421742738,1778089842000,-229.76505251,0.00032877,2]
[421742780,1778089842000,-150.0,0.0003419,2]
[421742801,1778089842000,-778.9490416,0.00034518,2]
[421742782,1778089842000,-150.0,0.000342,7]
[421742813,1778089842000,-1633.46575908,0.00035,120]
[421742824,1778089842000,-1352.0,0.0003507,2]
[421742816,1778089842000,-382.10203457,0.00035,120]
[421742818,1778089842000,-150.0,0.00035044,7]
[421742817,1778089842000,-171.0,0.00035,30]
[421742819,1778089842000,-151.0,0.00035049,14]
[421742821,1778089842000,-639.23,0.00035055,2]
[421742820,1778089842000,-393.19,0.00035052,2]
[421742822,1778089842000,-3536.0,0.0003507,2]
[421742823,1778089842000,-624.0,0.0003507,2]
[421742825,1778089842000,-1268.0,0.0003507,2]
[421742827,1778089842000,-4053.0,0.0003511,15]
[421742815,1778089842000,-1359.5547088,0.00035,120]
[421742828,1778089842000,-579.0,0.0003521,30]
[421742830,1778089842000,-527.0,0.00035221,30]
[421742833,1778089842000,-177.0,0.00035221,30]
[421742842,1778089842000,-271.12,0.00035342,120]
[421742832,1778089842000,-197.0,0.00035221,30]
[421742839,1778089842000,-267.02889892,0.00035333,5]
[421742835,1778089842000,-158.0,0.00035221,30]
[421742837,1778089842000,-402.43164233,0.00035333,5]
[421742834,1778089842000,-191.0,0.00035221,30]
[421742836,1778089842000,-208.0,0.00035221,30]
[421742843,1778089842000,-4053.0,0.00035384,15]
[421742844,1778089842000,-150.0,0.00035467,7]
[421742846,1778089842000,-222.94,0.0003562,2]
[421742826,1778089842000,-417.0,0.0003507,2]